[Event "Early-Titled-Tuesday-Blitz-January-23-2024"]
[Site "Chess.com"]
[Date "2024.01.23"]
[Round "10"]
[White "Iball95"]
[Black "tigurones"]
[Result "0-1"]
[WhiteElo "2765"]
[BlackElo "2492"]
[TimeControl "180+1"]
[EndTime "9:57:47 PST"]
[Termination "tigurones won by checkmate"]

1. e4 {[%clk 0:03:00.9]} 1... c5 {[%clk 0:02:58.3]} 2. Nf3 {[%clk 0:03:00.3]}
2... Nc6 {[%clk 0:02:58.1]} 3. Nc3 {[%clk 0:03:00.8]} 3... g6 {[%clk 0:02:57.5]}
4. d4 {[%clk 0:02:59.4]} 4... cxd4 {[%clk 0:02:57.2]} 5. Nxd4 {[%clk 0:03:00.3]}
5... Bg7 {[%clk 0:02:57.6]} 6. Nxc6 {[%clk 0:02:59.6]} 6... dxc6 {[%clk
0:02:57.4]} 7. Qxd8+ {[%clk 0:02:58.7]} 7... Kxd8 {[%clk 0:02:58.3]} 8. a4
{[%clk 0:02:57.6]} 8... Bxc3+ {[%clk 0:02:56.1]} 9. bxc3 {[%clk 0:02:58.5]} 9...
Nf6 {[%clk 0:02:56.1]} 10. f3 {[%clk 0:02:56.8]} 10... b6 {[%clk 0:02:51.5]} 11.
Bf4 {[%clk 0:02:53.5]} 11... Ke8 {[%clk 0:02:41.7]} 12. O-O-O {[%clk 0:02:51]}
12... Be6 {[%clk 0:02:38.1]} 13. Ba6 {[%clk 0:02:49.4]} 13... Rd8 {[%clk
0:02:32.9]} 14. Bc7 {[%clk 0:02:38.2]} 14... Rd7 {[%clk 0:02:24.8]} 15. Be5
{[%clk 0:02:29.4]} 15... Rg8 {[%clk 0:02:11.3]} 16. Rd4 {[%clk 0:02:23.9]} 16...
Rxd4 {[%clk 0:02:09.8]} 17. cxd4 {[%clk 0:02:24.8]} 17... Nd7 {[%clk 0:02:09.3]}
18. Bc7 {[%clk 0:02:20.6]} 18... f5 {[%clk 0:02:02.3]} 19. Kd2 {[%clk
0:02:12.7]} 19... fxe4 {[%clk 0:01:55]} 20. fxe4 {[%clk 0:02:13.6]} 20... Nf6
{[%clk 0:01:54.7]} 21. Re1 {[%clk 0:01:50.3]} 21... Kd7 {[%clk 0:01:50.3]} 22.
Bg3 {[%clk 0:01:50.6]} 22... Rf8 {[%clk 0:01:47.7]} 23. Bd3 {[%clk 0:01:35.2]}
23... Nh5 {[%clk 0:01:41.8]} 24. Be5 {[%clk 0:01:35.1]} 24... Ke8 {[%clk
0:01:29.2]} 25. Rf1 {[%clk 0:01:29.3]} 25... Rxf1 {[%clk 0:01:28.2]} 26. Bxf1
{[%clk 0:01:30.2]} 26... Kd7 {[%clk 0:01:24.5]} 27. h3 {[%clk 0:01:28.8]} 27...
Nf6 {[%clk 0:01:23.3]} 28. Ke3 {[%clk 0:01:28.9]} 28... Ne8 {[%clk 0:01:20.7]}
29. c4 {[%clk 0:01:27.9]} 29... Nd6 {[%clk 0:01:12.7]} 30. d5 {[%clk 0:01:27.4]}
30... cxd5 {[%clk 0:01:11.6]} 31. cxd5 {[%clk 0:01:28.1]} 31... Bf7 {[%clk
0:01:10.3]} 32. Kd4 {[%clk 0:01:26.2]} 32... e6 {[%clk 0:01:05.9]} 33. g4 {[%clk
0:01:25.2]} 33... exd5 {[%clk 0:01:04.1]} 34. exd5 {[%clk 0:01:26.1]} 34... Be8
{[%clk 0:00:58.2]} 35. Bd3 {[%clk 0:01:18.5]} 35... Ke7 {[%clk 0:00:53.9]} 36.
Bc2 {[%clk 0:01:15.2]} 36... Nb7 {[%clk 0:00:50.3]} 37. Bb8 {[%clk 0:01:14.4]}
37... a6 {[%clk 0:00:38.1]} 38. Ke5 {[%clk 0:01:10.9]} 38... Nc5 {[%clk
0:00:33.9]} 39. d6+ {[%clk 0:01:05.8]} 39... Kf8 {[%clk 0:00:32.9]} 40. Bc7
{[%clk 0:00:56.6]} 40... Nxa4 {[%clk 0:00:30.8]} 41. Kf6 {[%clk 0:00:45.6]}
41... Nc5 {[%clk 0:00:30.3]} 42. Bd8 {[%clk 0:00:34.9]} 42... Bf7 {[%clk
0:00:23.8]} 43. Ke5 {[%clk 0:00:22.2]} 43... Nd7+ {[%clk 0:00:20.5]} 44. Kd4
{[%clk 0:00:22.5]} 44... Ke8 {[%clk 0:00:20.1]} 45. Bc7 {[%clk 0:00:19.5]} 45...
b5 {[%clk 0:00:20.3]} 46. Ba5 {[%clk 0:00:19.2]} 46... Bc4 {[%clk 0:00:20.1]}
47. Be4 {[%clk 0:00:18.5]} 47... Bf1 {[%clk 0:00:20.5]} 48. h4 {[%clk
0:00:16.4]} 48... Bh3 {[%clk 0:00:21.1]} 49. g5 {[%clk 0:00:16.4]} 49... Be6
{[%clk 0:00:21.1]} 50. Bb7 {[%clk 0:00:16.1]} 50... Bc4 {[%clk 0:00:21.5]} 51.
Bxa6 {[%clk 0:00:10.7]} 51... Nb8 {[%clk 0:00:22]} 52. Bc8 {[%clk 0:00:10.2]}
52... Nc6+ {[%clk 0:00:21.4]} 53. Kc5 {[%clk 0:00:07.8]} 53... Nxa5 {[%clk
0:00:21.9]} 54. Kb6 {[%clk 0:00:05.3]} 54... Nb3 {[%clk 0:00:19.5]} 55. Kc7
{[%clk 0:00:05.6]} 55... Nc5 {[%clk 0:00:17.7]} 56. d7+ {[%clk 0:00:05.2]} 56...
Nxd7 {[%clk 0:00:18.2]} 57. Bxd7+ {[%clk 0:00:06.1]} 57... Ke7 {[%clk
0:00:18.8]} 58. Bg4 {[%clk 0:00:04.1]} 58... b4 {[%clk 0:00:18]} 59. Kc6 {[%clk
0:00:03.6]} 59... b3 {[%clk 0:00:17.6]} 60. Bd1 {[%clk 0:00:04.3]} 60... b2
{[%clk 0:00:17.1]} 61. Bc2 {[%clk 0:00:05]} 61... Ba2 {[%clk 0:00:17.6]} 62. Kc5
{[%clk 0:00:05.4]} 62... b1=Q {[%clk 0:00:18]} 63. Bxg6 {[%clk 0:00:06.1]} 63...
Qxg6 {[%clk 0:00:17.2]} 64. h5 {[%clk 0:00:02.5]} 64... Qd6+ {[%clk 0:00:16.4]}
65. Kb5 {[%clk 0:00:02.2]} 65... Bd5 {[%clk 0:00:16.6]} 66. g6 {[%clk
0:00:03.1]} 66... hxg6 {[%clk 0:00:16.2]} 67. h6 {[%clk 0:00:04]} 67... Kf7
{[%clk 0:00:15.3]} 68. h7 {[%clk 0:00:04.9]} 68... Kg7 {[%clk 0:00:15.8]} 69.
h8=Q+ {[%clk 0:00:05.8]} 69... Kxh8 {[%clk 0:00:16.4]} 70. Ka5 {[%clk
0:00:05.9]} 70... Qc5+ {[%clk 0:00:16.4]} 71. Ka6 {[%clk 0:00:06]} 71... Qb4
{[%clk 0:00:16.4]} 72. Ka7 {[%clk 0:00:06.4]} 72... Qb7# {[%clk 0:00:17.3]} 0-1

[Event "Early-Titled-Tuesday-Blitz-January-23-2024"]
[Site "Chess.com"]
[Date "2024.01.23"]
[Round "10"]
[White "MaxLeto"]
[Black "Zheenbekov86"]
[Result "1-0"]
[WhiteElo "2314"]
[BlackElo "2463"]
[TimeControl "180+1"]
[EndTime "9:57:48 PST"]
[Termination "MaxLeto won on time"]

1. e4 {[%clk 0:02:54]} 1... c6 {[%clk 0:02:59.3]} 2. d4 {[%clk 0:02:52.5]} 2...
d5 {[%clk 0:02:59.5]} 3. exd5 {[%clk 0:02:53.2]} 3... cxd5 {[%clk 0:02:59.6]} 4.
Bd3 {[%clk 0:02:54.1]} 4... Nc6 {[%clk 0:02:59.4]} 5. c3 {[%clk 0:02:53.9]} 5...
Nf6 {[%clk 0:02:59.4]} 6. h3 {[%clk 0:02:53.6]} 6... g6 {[%clk 0:02:58.4]} 7.
Nf3 {[%clk 0:02:49.1]} 7... Bf5 {[%clk 0:02:58.3]} 8. O-O {[%clk 0:02:46.9]}
8... e6 {[%clk 0:02:55.5]} 9. Re1 {[%clk 0:02:46.6]} 9... Bd6 {[%clk 0:02:50.7]}
10. Bf1 {[%clk 0:02:45.8]} 10... h5 {[%clk 0:02:44.1]} 11. Bg5 {[%clk
0:02:45.6]} 11... Kf8 {[%clk 0:02:39.9]} 12. Nbd2 {[%clk 0:02:42]} 12... Kg7
{[%clk 0:02:37.1]} 13. Ne5 {[%clk 0:02:41.9]} 13... Qc7 {[%clk 0:02:33.8]} 14.
Ndf3 {[%clk 0:02:27.8]} 14... Nd7 {[%clk 0:02:28.8]} 15. Nxd7 {[%clk 0:02:18.3]}
15... Qxd7 {[%clk 0:02:28.1]} 16. Qd2 {[%clk 0:02:19.2]} 16... Qc7 {[%clk
0:02:21.5]} 17. Nh4 {[%clk 0:02:17.8]} 17... f6 {[%clk 0:02:14.2]} 18. Nxf5+
{[%clk 0:02:16.2]} 18... exf5 {[%clk 0:02:06.4]} 19. Bh4 {[%clk 0:02:16.2]}
19... Bh2+ {[%clk 0:01:43.4]} 20. Kh1 {[%clk 0:02:15.9]} 20... Bf4 {[%clk
0:01:43]} 21. Qd3 {[%clk 0:02:12.8]} 21... Rhe8 {[%clk 0:01:40.6]} 22. Be2
{[%clk 0:02:00.9]} 22... a6 {[%clk 0:01:39.1]} 23. Bf3 {[%clk 0:02:00.6]} 23...
Qd6 {[%clk 0:01:34.8]} 24. Re2 {[%clk 0:01:28.6]} 24... Re4 {[%clk 0:01:14.7]}
25. Bxe4 {[%clk 0:01:22.3]} 25... fxe4 {[%clk 0:01:14.2]} 26. Qc2 {[%clk
0:01:18]} 26... f5 {[%clk 0:01:00.7]} 27. Rf1 {[%clk 0:01:13.2]} 27... b5 {[%clk
0:00:39.3]} 28. f3 {[%clk 0:01:12.8]} 28... e3 {[%clk 0:00:20.2]} 29. Qd3 {[%clk
0:01:10.6]} 29... Bh6 {[%clk 0:00:19.5]} 30. Rxe3 {[%clk 0:01:04.1]} 30... Bxe3
{[%clk 0:00:19]} 31. Qxe3 {[%clk 0:01:05]} 31... f4 {[%clk 0:00:18.1]} 32. Qd3
{[%clk 0:01:02.4]} 32... Ra7 {[%clk 0:00:17.9]} 33. Re1 {[%clk 0:01:00.3]} 33...
Rf7 {[%clk 0:00:17.7]} 34. Bg5 {[%clk 0:00:59]} 34... Na5 {[%clk 0:00:17.3]} 35.
Re8 {[%clk 0:00:50.6]} 35... Nc4 {[%clk 0:00:16.9]} 36. Qe2 {[%clk 0:00:50.1]}
36... Ne3 {[%clk 0:00:16.2]} 37. Bxf4 {[%clk 0:00:48.7]} 37... Qxf4 {[%clk
0:00:06.5]} 38. Qxe3 {[%clk 0:00:48.4]} 38... Qf5 {[%clk 0:00:05.8]} 39. Qe5+
{[%clk 0:00:47]} 39... Qxe5 {[%clk 0:00:05.8]} 40. Rxe5 {[%clk 0:00:47.9]} 40...
Rd7 {[%clk 0:00:05.5]} 41. f4 {[%clk 0:00:48.4]} 41... Kf6 {[%clk 0:00:05.8]}
42. g4 {[%clk 0:00:47.5]} 42... hxg4 {[%clk 0:00:05.5]} 43. hxg4 {[%clk
0:00:48.4]} 43... Rh7+ {[%clk 0:00:05.7]} 44. Kg2 {[%clk 0:00:48.8]} 44... Rh4
{[%clk 0:00:06.2]} 45. g5+ {[%clk 0:00:41.6]} 45... Kf7 {[%clk 0:00:06.2]} 46.
Kg3 {[%clk 0:00:38.7]} 46... Rh1 {[%clk 0:00:06.1]} 47. Rxd5 {[%clk 0:00:38.8]}
47... Rb1 {[%clk 0:00:06.3]} 48. Rd6 {[%clk 0:00:33.5]} 48... Rxb2 {[%clk
0:00:06.1]} 49. Rf6+ {[%clk 0:00:33.6]} 49... Kg7 {[%clk 0:00:04.8]} 50. Rxa6
{[%clk 0:00:34.1]} 50... Rc2 {[%clk 0:00:05.4]} 51. Ra7+ {[%clk 0:00:33.9]}
51... Kf8 {[%clk 0:00:04.9]} 52. Rc7 {[%clk 0:00:30.6]} 52... Rxa2 {[%clk
0:00:04.6]} 53. Kf3 {[%clk 0:00:30.3]} 53... Ra3 {[%clk 0:00:04.6]} 54. Ke4
{[%clk 0:00:30.4]} 54... Ra2 {[%clk 0:00:04.5]} 55. Ke5 {[%clk 0:00:30.7]} 55...
Rc2 {[%clk 0:00:04.3]} 56. Kf6 {[%clk 0:00:25.1]} 56... Ke8 {[%clk 0:00:04.5]}
57. Rc5 {[%clk 0:00:20.1]} 57... b4 {[%clk 0:00:04.5]} 58. cxb4 {[%clk
0:00:20.2]} 58... Rb2 {[%clk 0:00:04.4]} 59. b5 {[%clk 0:00:20.3]} 59... Rd2
{[%clk 0:00:04.1]} 60. d5 {[%clk 0:00:20]} 60... Kd7 {[%clk 0:00:04.3]} 61. Kxg6
{[%clk 0:00:18.9]} 61... Kd6 {[%clk 0:00:04.4]} 62. Rc6+ {[%clk 0:00:18.7]}
62... Kxd5 {[%clk 0:00:04.6]} 63. f5 {[%clk 0:00:19.6]} 63... Rb2 {[%clk
0:00:04.6]} 64. f6 {[%clk 0:00:19.6]} 64... Rxb5 {[%clk 0:00:04.1]} 65. Rc8
{[%clk 0:00:20.2]} 65... Rb1 {[%clk 0:00:02.1]} 66. Re8 {[%clk 0:00:19.3]} 66...
Kd6 {[%clk 0:00:01.8]} 67. Kg7 {[%clk 0:00:18.2]} 67... Rf1 {[%clk 0:00:02.4]}
68. f7 {[%clk 0:00:17.8]} 68... Kd7 {[%clk 0:00:03]} 69. g6 {[%clk 0:00:17.6]}
1-0

[Event "Early-Titled-Tuesday-Blitz-January-23-2024"]
[Site "Chess.com"]
[Date "2024.01.23"]
[Round "10"]
[White "ural58"]
[Black "1mbl4"]
[Result "1/2-1/2"]
[WhiteElo "2462"]
[BlackElo "2573"]
[TimeControl "180+1"]
[EndTime "9:57:53 PST"]
[Termination "Game drawn by stalemate"]

1. e4 {[%clk 0:03:00.9]} 1... g6 {[%clk 0:02:55.4]} 2. d4 {[%clk 0:03:00.2]}
2... Bg7 {[%clk 0:02:55.4]} 3. Nc3 {[%clk 0:03:00.2]} 3... d6 {[%clk 0:02:55.6]}
4. h4 {[%clk 0:02:54.6]} 4... h5 {[%clk 0:02:54.3]} 5. Nf3 {[%clk 0:02:53.8]}
5... Nf6 {[%clk 0:02:53.5]} 6. Bg5 {[%clk 0:02:48.5]} 6... c6 {[%clk 0:02:51.4]}
7. Qd2 {[%clk 0:02:48.2]} 7... b5 {[%clk 0:02:49.5]} 8. Bd3 {[%clk 0:02:48.1]}
8... a5 {[%clk 0:02:31.5]} 9. a4 {[%clk 0:02:44]} 9... b4 {[%clk 0:02:29.9]} 10.
Ne2 {[%clk 0:02:44.5]} 10... d5 {[%clk 0:02:21.2]} 11. Ng3 {[%clk 0:02:42.2]}
11... dxe4 {[%clk 0:02:07.8]} 12. Nxe4 {[%clk 0:02:41.7]} 12... Nbd7 {[%clk
0:02:08]} 13. c3 {[%clk 0:02:12.9]} 13... Qb6 {[%clk 0:01:54.5]} 14. O-O {[%clk
0:02:10.8]} 14... O-O {[%clk 0:01:53.8]} 15. Rfe1 {[%clk 0:02:10.3]} 15... Ba6
{[%clk 0:01:44.1]} 16. Nxf6+ {[%clk 0:01:59.7]} 16... exf6 {[%clk 0:01:42.4]}
17. Be3 {[%clk 0:01:56.4]} 17... Bxd3 {[%clk 0:01:37.2]} 18. Qxd3 {[%clk
0:01:43.8]} 18... Qb7 {[%clk 0:01:36.7]} 19. Nd2 {[%clk 0:01:25]} 19... Rfd8
{[%clk 0:01:31.9]} 20. Ne4 {[%clk 0:01:15.8]} 20... Ne5 {[%clk 0:01:27.4]} 21.
Qe2 {[%clk 0:01:12.8]} 21... Ng4 {[%clk 0:01:26.9]} 22. Nc5 {[%clk 0:01:09.6]}
22... Qc7 {[%clk 0:01:23.9]} 23. g3 {[%clk 0:01:08.8]} 23... Re8 {[%clk
0:01:20.3]} 24. Qf3 {[%clk 0:01:08.5]} 24... bxc3 {[%clk 0:01:05.2]} 25. bxc3
{[%clk 0:01:08]} 25... Nxe3 {[%clk 0:01:02.8]} 26. Rxe3 {[%clk 0:01:06.5]} 26...
Rxe3 {[%clk 0:01:02.8]} 27. Qxe3 {[%clk 0:01:05.8]} 27... f5 {[%clk 0:01:03.2]}
28. Rb1 {[%clk 0:01:00.8]} 28... Rb8 {[%clk 0:00:59.8]} 29. Rxb8+ {[%clk
0:00:58.8]} 29... Qxb8 {[%clk 0:00:59.8]} 30. Qd3 {[%clk 0:00:49.5]} 30... Bf8
{[%clk 0:00:54.8]} 31. Nd7 {[%clk 0:00:46.4]} 31... Qb3 {[%clk 0:00:52.1]} 32.
Nxf8 {[%clk 0:00:46.2]} 32... Kxf8 {[%clk 0:00:51.4]} 33. Kg2 {[%clk 0:00:31.5]}
33... Qxa4 {[%clk 0:00:50.7]} 34. c4 {[%clk 0:00:31.2]} 34... Qb4 {[%clk
0:00:47.8]} 35. d5 {[%clk 0:00:28.2]} 35... cxd5 {[%clk 0:00:45.4]} 36. Qxd5
{[%clk 0:00:27.1]} 36... a4 {[%clk 0:00:39.3]} 37. Qd8+ {[%clk 0:00:18.6]} 37...
Kg7 {[%clk 0:00:39]} 38. Qd4+ {[%clk 0:00:18.6]} 38... Kh7 {[%clk 0:00:37.4]}
39. Qd5 {[%clk 0:00:17.1]} 39... Qe7 {[%clk 0:00:35.3]} 40. c5 {[%clk
0:00:12.3]} 40... a3 {[%clk 0:00:34.5]} 41. c6 {[%clk 0:00:12.5]} 41... Qe4+
{[%clk 0:00:22.1]} 42. Qxe4 {[%clk 0:00:12.6]} 42... fxe4 {[%clk 0:00:23]} 43.
c7 {[%clk 0:00:13.2]} 43... a2 {[%clk 0:00:23.4]} 44. c8=Q {[%clk 0:00:14.1]}
44... a1=Q {[%clk 0:00:24.3]} 45. Qe8 {[%clk 0:00:14.2]} 45... Qf6 {[%clk
0:00:16.5]} 46. Qxe4 {[%clk 0:00:13.8]} 46... Kg7 {[%clk 0:00:17.1]} 47. Qf3
{[%clk 0:00:13.4]} 47... Qe5 {[%clk 0:00:17]} 48. Qd3 {[%clk 0:00:12.5]} 48...
Kf6 {[%clk 0:00:16.7]} 49. Qf3+ {[%clk 0:00:12.6]} 49... Ke6 {[%clk 0:00:16.6]}
50. Qd3 {[%clk 0:00:12.7]} 50... Qd5+ {[%clk 0:00:16.4]} 51. Qxd5+ {[%clk
0:00:13]} 51... Kxd5 {[%clk 0:00:17.3]} 52. Kf3 {[%clk 0:00:13.4]} 52... f6
{[%clk 0:00:16.3]} 53. Kf4 {[%clk 0:00:13.5]} 53... Ke6 {[%clk 0:00:16.1]} 54.
Ke4 {[%clk 0:00:13.5]} 54... Kd6 {[%clk 0:00:15.3]} 55. Kd4 {[%clk 0:00:13.6]}
55... Ke6 {[%clk 0:00:14.9]} 56. Ke4 {[%clk 0:00:12.6]} 56... Kd6 {[%clk
0:00:15]} 57. f3 {[%clk 0:00:13.1]} 57... Ke6 {[%clk 0:00:14.5]} 58. Kd4 {[%clk
0:00:12.5]} 58... Kf5 {[%clk 0:00:14.2]} 59. Ke3 {[%clk 0:00:11.2]} 59... Ke5
{[%clk 0:00:14.1]} 60. Kd3 {[%clk 0:00:10.7]} 60... Kd5 {[%clk 0:00:13.9]} 61.
Ke3 {[%clk 0:00:11.1]} 61... Ke5 {[%clk 0:00:13.8]} 62. Kd3 {[%clk 0:00:11.1]}
62... g5 {[%clk 0:00:13.5]} 63. hxg5 {[%clk 0:00:10.6]} 63... fxg5 {[%clk
0:00:13.5]} 64. Ke3 {[%clk 0:00:11.3]} 64... Kf5 {[%clk 0:00:13.8]} 65. Kf2
{[%clk 0:00:09.9]} 65... Kf6 {[%clk 0:00:13]} 66. Ke3 {[%clk 0:00:10]} 66... Ke5
{[%clk 0:00:13.3]} 67. Kd3 {[%clk 0:00:09.2]} 67... Kd5 {[%clk 0:00:13.4]} 68.
Ke3 {[%clk 0:00:09]} 68... Ke5 {[%clk 0:00:13.8]} 69. f4+ {[%clk 0:00:08.7]}
69... gxf4+ {[%clk 0:00:12.4]} 70. gxf4+ {[%clk 0:00:09]} 70... Kf5 {[%clk
0:00:13.1]} 71. Kf3 {[%clk 0:00:09.7]} 71... h4 {[%clk 0:00:13.6]} 72. Kg2
{[%clk 0:00:09.8]} 72... Kxf4 {[%clk 0:00:13.9]} 73. Kh1 {[%clk 0:00:10.2]}
73... Kg3 {[%clk 0:00:13.7]} 74. Kg1 {[%clk 0:00:10.4]} 74... h3 {[%clk
0:00:14.6]} 75. Kh1 {[%clk 0:00:11.3]} 75... h2 {[%clk 0:00:15.5]} 1/2-1/2

[Event "Early-Titled-Tuesday-Blitz-January-23-2024"]
[Site "Chess.com"]
[Date "2024.01.23"]
[Round "10"]
[White "lularobs"]
[Black "fks_stal_mielec"]
[Result "0-1"]
[WhiteElo "1572"]
[BlackElo "2207"]
[TimeControl "180+1"]
[EndTime "9:57:55 PST"]
[Termination "fks_stal_mielec won by checkmate"]

1. e4 {[%clk 0:03:00.9]} 1... c5 {[%clk 0:01:25.8]} 2. d4 {[%clk 0:03:00.5]}
2... cxd4 {[%clk 0:01:22.8]} 3. c3 {[%clk 0:03:01.4]} 3... dxc3 {[%clk
0:01:21.6]} 4. Nxc3 {[%clk 0:03:02.3]} 4... g6 {[%clk 0:01:20.3]} 5. Nf3 {[%clk
0:03:02.8]} 5... Bg7 {[%clk 0:01:21]} 6. Bc4 {[%clk 0:03:03.1]} 6... Nc6 {[%clk
0:01:21.2]} 7. O-O {[%clk 0:03:03.3]} 7... e6 {[%clk 0:01:21.8]} 8. Qe2 {[%clk
0:03:02.2]} 8... Nge7 {[%clk 0:01:22.7]} 9. Rd1 {[%clk 0:03:02.4]} 9... O-O
{[%clk 0:01:23.2]} 10. Bg5 {[%clk 0:03:02.2]} 10... Qa5 {[%clk 0:01:21.7]} 11.
Rac1 {[%clk 0:02:43.1]} 11... f6 {[%clk 0:01:20.2]} 12. Bd2 {[%clk 0:02:39.8]}
12... Qb6 {[%clk 0:01:17.3]} 13. Be3 {[%clk 0:02:26.4]} 13... Qd8 {[%clk
0:01:14.6]} 14. Nb5 {[%clk 0:02:25.2]} 14... a6 {[%clk 0:01:11.7]} 15. Nd6
{[%clk 0:02:24.4]} 15... Kh8 {[%clk 0:01:06.6]} 16. Bxe6 {[%clk 0:02:15.9]}
16... Qa5 {[%clk 0:00:56]} 17. Bb3 {[%clk 0:02:08.2]} 17... f5 {[%clk
0:00:46.8]} 18. exf5 {[%clk 0:01:54.6]} 18... Nxf5 {[%clk 0:00:46.3]} 19. Bd2
{[%clk 0:01:51.6]} 19... Qd8 {[%clk 0:00:34]} 20. Nf7+ {[%clk 0:01:51.2]} 20...
Rxf7 {[%clk 0:00:33.1]} 21. Bxf7 {[%clk 0:01:52.1]} 21... Ncd4 {[%clk
0:00:31.2]} 22. Nxd4 {[%clk 0:01:49.8]} 22... Nxd4 {[%clk 0:00:32.1]} 23. Qe8+
{[%clk 0:01:43.7]} 23... Qxe8 {[%clk 0:00:32.5]} 24. Bxe8 {[%clk 0:01:44.6]}
24... Ne2+ {[%clk 0:00:31.9]} 25. Kf1 {[%clk 0:01:44.9]} 25... Nxc1 {[%clk
0:00:31.8]} 26. Rxc1 {[%clk 0:01:45.8]} 26... d5 {[%clk 0:00:30.6]} 27. Re1
{[%clk 0:01:35.7]} 27... Bf5 {[%clk 0:00:29.2]} 28. Ba4 {[%clk 0:01:29.5]} 28...
Bd3+ {[%clk 0:00:28.6]} 29. Kg1 {[%clk 0:01:28.1]} 29... Bxb2 {[%clk 0:00:28.6]}
30. Bb3 {[%clk 0:01:27.8]} 30... Bc4 {[%clk 0:00:25.2]} 31. Bf4 {[%clk 0:01:17]}
31... Bxb3 {[%clk 0:00:19.1]} 32. axb3 {[%clk 0:01:17.9]} 32... Rc8 {[%clk
0:00:18.1]} 33. h3 {[%clk 0:01:16.5]} 33... d4 {[%clk 0:00:18.3]} 34. Rd1 {[%clk
0:01:16]} 34... Kg8 {[%clk 0:00:18.1]} 35. Be5 {[%clk 0:01:15.3]} 35... Rd8
{[%clk 0:00:15.2]} 36. Kf1 {[%clk 0:01:12.5]} 36... b5 {[%clk 0:00:10.8]} 37.
Ke1 {[%clk 0:01:12.7]} 37... Bc3+ {[%clk 0:00:10.2]} 38. Kf1 {[%clk 0:01:10.3]}
38... a5 {[%clk 0:00:10.7]} 39. Bc7 {[%clk 0:01:06.1]} 39... Rd7 {[%clk
0:00:10.3]} 40. Bb6 {[%clk 0:01:05.1]} 40... a4 {[%clk 0:00:08.4]} 41. bxa4
{[%clk 0:01:04.8]} 41... bxa4 {[%clk 0:00:09.3]} 42. Bc5 {[%clk 0:01:04.8]}
42... Rc7 {[%clk 0:00:07.7]} 43. Bxd4 {[%clk 0:01:03.2]} 43... Bxd4 {[%clk
0:00:07.8]} 44. Rxd4 {[%clk 0:01:02.8]} 44... Rc1+ {[%clk 0:00:08.3]} 45. Ke2
{[%clk 0:01:03.1]} 45... a3 {[%clk 0:00:08.5]} 46. Rd2 {[%clk 0:01:03.2]} 46...
Rb1 {[%clk 0:00:07.9]} 47. Kf3 {[%clk 0:01:01.2]} 47... Rb2 {[%clk 0:00:08.1]}
48. Rd1 {[%clk 0:01:00.5]} 48... a2 {[%clk 0:00:08.4]} 49. Ra1 {[%clk
0:01:00.6]} 49... Kg7 {[%clk 0:00:08.7]} 50. Ke3 {[%clk 0:01:00.1]} 50... Kh6
{[%clk 0:00:08.6]} 51. f3 {[%clk 0:00:59.9]} 51... Rxg2 {[%clk 0:00:07.7]} 52.
Kf4 {[%clk 0:00:58.6]} 52... Rh2 {[%clk 0:00:06.9]} 53. Kg3 {[%clk 0:00:58.2]}
53... Rb2 {[%clk 0:00:06.8]} 54. h4 {[%clk 0:00:58.3]} 54... Kh5 {[%clk
0:00:06.1]} 55. f4 {[%clk 0:00:53.1]} 55... Rb3+ {[%clk 0:00:06]} 56. Kf2 {[%clk
0:00:50.7]} 56... Rb2+ {[%clk 0:00:05.2]} 57. Kg3 {[%clk 0:00:50.7]} 57... Rb3+
{[%clk 0:00:05.5]} 58. Kf2 {[%clk 0:00:51.1]} 58... Kxh4 {[%clk 0:00:05.8]} 59.
Rxa2 {[%clk 0:00:50.6]} 59... Kg4 {[%clk 0:00:06.3]} 60. Ra4 {[%clk 0:00:49.9]}
60... Rb2+ {[%clk 0:00:06.5]} 61. Ke3 {[%clk 0:00:49.8]} 61... Rb3+ {[%clk
0:00:07]} 62. Ke4 {[%clk 0:00:49.1]} 62... h5 {[%clk 0:00:06.5]} 63. Ra7 {[%clk
0:00:47.7]} 63... Rf3 {[%clk 0:00:06.2]} 64. Rf7 {[%clk 0:00:46.7]} 64... h4
{[%clk 0:00:05.5]} 65. Ke5 {[%clk 0:00:44.3]} 65... h3 {[%clk 0:00:05.4]} 66.
Rg7 {[%clk 0:00:44.7]} 66... Kh5 {[%clk 0:00:05]} 67. Rh7+ {[%clk 0:00:39.7]}
67... Kg4 {[%clk 0:00:05.4]} 68. Kf6 {[%clk 0:00:22.4]} 68... Rxf4+ {[%clk
0:00:05.3]} 69. Kxg6 {[%clk 0:00:22.9]} 69... Kg3 {[%clk 0:00:05.7]} 70. Kg5
{[%clk 0:00:20.9]} 70... Rg4+ {[%clk 0:00:05.8]} 71. Kf5 {[%clk 0:00:20.9]}
71... Rf4+ {[%clk 0:00:05.8]} 72. Kg5 {[%clk 0:00:21.2]} 72... Ra4 {[%clk
0:00:05.7]} 73. Rg7 {[%clk 0:00:19.5]} 73... Rg4+ {[%clk 0:00:04.8]} 74. Kh6
{[%clk 0:00:18.9]} 74... Rxg7 {[%clk 0:00:04.7]} 75. Kxg7 {[%clk 0:00:19.8]}
75... h2 {[%clk 0:00:05.1]} 76. Kg6 {[%clk 0:00:19.9]} 76... h1=Q {[%clk
0:00:06]} 77. Kg5 {[%clk 0:00:20.7]} 77... Qe4 {[%clk 0:00:06.1]} 78. Kf6 {[%clk
0:00:21.1]} 78... Kf4 {[%clk 0:00:06.2]} 79. Kf7 {[%clk 0:00:20.6]} 79... Qe5
{[%clk 0:00:05.8]} 80. Kf8 {[%clk 0:00:20]} 80... Qe6 {[%clk 0:00:06.3]} 81. Kg7
{[%clk 0:00:19.6]} 81... Qf5 {[%clk 0:00:06.2]} 82. Kg8 {[%clk 0:00:19.4]} 82...
Qd7 {[%clk 0:00:05.5]} 83. Kh8 {[%clk 0:00:18.8]} 83... Kg5 {[%clk 0:00:06.2]}
84. Kg8 {[%clk 0:00:19.2]} 84... Kg6 {[%clk 0:00:06.8]} 85. Kh8 {[%clk
0:00:19.6]} 85... Qd8# {[%clk 0:00:07]} 0-1